Name,Sub Group,Service Area ,Expense Type,Narrative,Date,Transaction No,Amount,Supplier Name,Supplier Ref,Period,Year
Allerdale Borough Council,15601,Supplies & Services,Carnegie Theatre,Postage,03/09/2014,93999,56.89,ALLERDALE BOROUGH COUNCIL - CARNEGIE,X00215,6,2014
Allerdale Borough Council,14105,Transport,Solway Coast AONB Core Funding,"Fuel, Lubricants & Consumables",,94000,451.02,BP OIL UK LTD,X00022,6,2014
Allerdale Borough Council,14105,Transport,Parking Services Pay Group,"Fuel, Lubricants & Consumables",,94001,546.84,BP OIL UK LTD ,X00022,6,2014
Allerdale Borough Council,14105,Transport,Parking Services Pay Group,"Fuel, Lubricants & Consumables",,94002,299.06,BP OIL UK LTD,X00022,6,2014
Allerdale Borough Council,15501,Supplies & Services,Food and Occupational Health,Consultants Fees,03/09/2014,94007,80,COOMARA LTD,A01991,6,2014
Allerdale Borough Council,15104,Supplies & Services,Bereavement Services,Supplies for Resale,03/09/2014,94008,51,GRANART,A00644,6,2014
Allerdale Borough Council,15501,Supplies & Services,Environmental Protection,Consultants Fees,17/09/2014,94009,582.8,UNITED UTILITIES PLC,A01657,6,2014
Allerdale Borough Council,15506,Supplies & Services,Risk Management,Professional Services,03/09/2014,94010,1862,NPS NORTH WEST LTD,A01708,6,2014
Allerdale Borough Council,15303,Supplies & Services,Food and Occupational Health,Laundry,03/09/2014,94011,79.24,BERENDSEN UK LTD,A00027,6,2014
Allerdale Borough Council,12101,Premises,Other Land & Buildings,External Maintenance & Decoration,17/09/2014,94012,270,JOHN ELLIOTT LIMITED,C00023,6,2014
Allerdale Borough Council,10401,Employee Costs,Elections,Agency Staff Costs,10/09/2014,94013,1441.5,SELLICK PARTNERSHIP,A01993,6,2014
Allerdale Borough Council,15500,Supplies & Services,Disposal of Allerdale Sites,Budget-Services,17/09/2014,94014,720,MACDONALD & COMPANY FREELANCE LTD,A01947,6,2014
Allerdale Borough Council,15810,Supplies & Services,IT Services,Software Licences,03/09/2014,94015,334,DATA INTERCHANGE PLC,A01316,6,2014
Allerdale Borough Council,15812,Supplies & Services,Revs & Bens Transformation Project,Software Development,24/09/2014,94016,4500,LIBERATA UK LTD,C00122,6,2014
Allerdale Borough Council,15501,Supplies & Services,Planning and Development,Consultants Fees,03/09/2014,94017,152.5,CAPITA (TREE/HEDGEROWS),A00683,6,2014
Allerdale Borough Council,15501,Supplies & Services,Planning and Development,Consultants Fees,03/09/2014,94018,180,CAPITA (TREE/HEDGEROWS),A00683,6,2014
Allerdale Borough Council,16102,Supplies & Services,Town Centre Management,Regeneration Initiatives,03/09/2014,94019,50,RIVERSMEET COMMUNITY COOPERATIVE,A01806,6,2014
Allerdale Borough Council,20301,Third Party Payments,Parks and Grounds Maintenance,Contract Services-Parks & Open Spaces,03/09/2014,94020,97019,ISS WATERERS LANDSCAPE,C00044,6,2014
Allerdale Borough Council,15514,Supplies & Services,Carnegie Theatre,Public Entertainment,03/09/2014,94021,451.67,BARRY COLLINGS ENTERTAINMENTS,A01545,6,2014
Allerdale Borough Council,33107,Income,Trade Waste,Trade Refuse Charges Income,03/09/2014,94022,114.4,Redacted information - included personal information ,R00006,6,2014
Allerdale Borough Council,15512,Supplies & Services,Animal Welfare,Kennelling,10/09/2014,94023,2741,WHINMILL FARM CANINE CENTRE,A00117,6,2014
Allerdale Borough Council,20305,Third Party Payments,Sports & Leisure Centres,Contract Services-Leisure Centres,03/09/2014,94024,50600,CARLISLE LEISURE LTD,A00136,6,2014
Allerdale Borough Council,20305,Third Party Payments,Maryport Wave,Contract Services-Leisure Centres,03/09/2014,94025,12500,CARLISLE LEISURE LTD,A00136,6,2014
Allerdale Borough Council,16150,Supplies & Services,Solway Wetlands Project,General Promotions,03/09/2014,94026,95,Redacted information - included personal information ,M00203,6,2014
Allerdale Borough Council,33107,Income,Trade Waste,Trade Refuse Charges Income,03/09/2014,94027,104.17,Redacted information - included personal information ,M00609,6,2014
Allerdale Borough Council,33107,Income,Trade Waste,Trade Refuse Charges Income,03/09/2014,94028,242.68,Redacted information - included personal information ,M00610,6,2014
Allerdale Borough Council,54105,Capital Expenditure,Disabled Facilities Grants,Grants  Private Individuals (Capital),03/09/2014,94029,575,CONISTON CONSULTANTS LTD,X00210,6,2014
Allerdale Borough Council,54105,Capital Expenditure,Disabled Facilities Grants,Grants  Private Individuals (Capital),03/09/2014,94030,2581,JOSEPH RIDLEY BUILDERS LTD,X00124,6,2014
Allerdale Borough Council,54105,Capital Expenditure,Disabled Facilities Grants,Grants  Private Individuals (Capital),03/09/2014,94031,1620,DAY CUMMINS LIMITED,A00131,6,2014
Allerdale Borough Council,54105,Capital Expenditure,Disabled Facilities Grants,Grants  Private Individuals (Capital),03/09/2014,94032,5005,THYSSEN KRUPP ENCASA A DIVISION OF THYSSENKRUPP LIMITED,X00105,6,2014
Allerdale Borough Council,54105,Capital Expenditure,Disabled Facilities Grants,Grants  Private Individuals (Capital),03/09/2014,94033,1041.41,DOLPHIN STAIRLIFTS CUMBRIA,X00107,6,2014
Allerdale Borough Council,54105,Capital Expenditure,Disabled Facilities Grants,Grants  Private Individuals (Capital),03/09/2014,94034,2506.46,JACOBS STOBBARTS LIMITED,C00139,6,2014
Allerdale Borough Council,10202,Employee Costs,Human Resources Pay Group,Medical Screening,17/09/2014,94035,32.96,WELLWORK LTD,A00029,6,2014
Allerdale Borough Council,10202,Employee Costs,Human Resources Pay Group,Medical Screening,17/09/2014,94036,32.96,WELLWORK LTD,A00029,6,2014
Allerdale Borough Council,15302,Supplies & Services,Public Convenience Cleaning,Protective Clothing,03/09/2014,94037,53855.4,PARKSAFE,A00647,6,2014
Allerdale Borough Council,16150,Supplies & Services,Solway Wetlands Project,General Promotions,10/09/2014,94038,35.99,VIKING DIRECT,A00828,6,2014
Allerdale Borough Council,12408,Premises,Corporate Property Maintenance,Water & Sewage,03/09/2014,94039,39.6,UNITED UTILITIES ,X00011,6,2014
Allerdale Borough Council,12408,Premises,Corporate Property Maintenance,Water & Sewage,03/09/2014,94040,115.68,UNITED UTILITIES ,X00011,6,2014
Allerdale Borough Council,35106,Income,Homelessness,Dwellings Income,03/09/2014,94041,224.84,ALLERDALE,A00342,6,2014
Allerdale Borough Council,15302,Supplies & Services,Public Convenience Cleaning,Protective Clothing,03/09/2014,94042,-44.91,ARCO LIMITED,A01448,6,2014
Allerdale Borough Council,12408,Premises,Other Land & Buildings,Water & Sewage,03/09/2014,94043,44.11,UNITED UTILITIES,X00011,6,2014
Allerdale Borough Council,12408,Premises,Other Land & Buildings,Water & Sewage,03/09/2014,94044,173.9,UNITED UTILITIES,X00011,6,2014
Allerdale Borough Council,16150,Supplies & Services,Solway Wetlands Project,General Promotions,10/09/2014,94045,-35.99,VIKING DIRECT,A00828,6,2014
Allerdale Borough Council,15502,Supplies & Services,Legal Services,Land Registry Fees,02/09/2014,94046,21,HM LAND REGISTRY,A00505,6,2014
Allerdale Borough Council,54105,Capital Expenditure,Disabled Facilities Grants,Grants  Private Individuals (Capital),03/09/2014,94047,3050,BLUE FLAME SERVICES LTD,X00213,6,2014
Allerdale Borough Council,54105,Capital Expenditure,Disabled Facilities Grants,Grants  Private Individuals (Capital),03/09/2014,94048,28243.07,Redacted information - included personal information ,M00611,6,2014
Allerdale Borough Council,54105,Capital Expenditure,Disabled Facilities Grants,Grants  Private Individuals (Capital),03/09/2014,94049,2658.32,PPM LTD,X00229,6,2014
Allerdale Borough Council,54105,Capital Expenditure,Disabled Facilities Grants,Grants  Private Individuals (Capital),03/09/2014,94050,2035.16,W W BUILDERS LIMITED,X00212,6,2014
Allerdale Borough Council,54105,Capital Expenditure,Disabled Facilities Grants,Grants  Private Individuals (Capital),03/09/2014,94051,27886.8,TOP NOTCH CONTRACTORS LTD,X00165,6,2014
Allerdale Borough Council,81602,Balance Sheet,General Fund,Prov-Insurance Excess (Balance Sheet),03/09/2014,94052,2834.3,Redacted information - included personal information ,M00612,6,2014
Allerdale Borough Council,33150,Income,Credit Union,Other Fees Income,03/09/2014,94053,1597,THE ALLERDALE CREDIT UNION,A00493,6,2014
Allerdale Borough Council,21150,Transfer Payments,Festivals & Events,General Grants,03/09/2014,94054,50,SILLOTH CARNIVAL FUND,M00576,6,2014
Allerdale Borough Council,15201,Supplies & Services,Council Plan Priorities,Entertainment Of Visitors,03/09/2014,94055,65.7,ALLERDALE BOROUGH COUNCIL - CARNEGIE,X00215,6,2014
Allerdale Borough Council,15201,Supplies & Services,Council Plan Priorities,Entertainment Of Visitors,03/09/2014,94056,119.8,ALLERDALE BOROUGH COUNCIL - CARNEGIE,X00215,6,2014
Allerdale Borough Council,15201,Supplies & Services,Council Plan Priorities,Entertainment Of Visitors,03/09/2014,94057,1500,Redacted information - included personal information ,A01052,6,2014
Allerdale Borough Council,10401,Employee Costs,Customer & Transformation Programme,Agency Staff Costs,17/09/2014,94058,480,AQUA BUBBLE LTD T/A CRYSTAL UMBRELLA,A01907,6,2014
Allerdale Borough Council,15404,Supplies & Services,Legal Services,Reference Materials,24/09/2014,94059,261,SWEET & MAXWELL (THOMSON REUTERS),A00028,6,2014
Allerdale Borough Council,10401,Employee Costs,Housing Services Pay Group,Agency Staff Costs,03/09/2014,94060,771.75,TEDGEM INVESTMENTS LTD,A01962,6,2014
Allerdale Borough Council,15202,Supplies & Services,Carnegie Theatre,Bar Provision,10/09/2014,94061,106.04,MITCHELL KRAUSE BREWING LTD,A01861,6,2014
Allerdale Borough Council,16150,Supplies & Services,Solway Wetlands Project,General Promotions,10/09/2014,94062,750,MOBILEADVENTURE,A02045,6,2014
Allerdale Borough Council,15202,Supplies & Services,Carnegie Theatre,Bar Provision,01/10/2014,94063,212.08,MITCHELL KRAUSE BREWING LTD,A01861,6,2014
Allerdale Borough Council,15202,Supplies & Services,Carnegie Theatre,Bar Provision,10/09/2014,94064,164.91,C.S. DRINKS LTD,A00005,6,2014
Allerdale Borough Council,15301,Supplies & Services,Parks Development,Uniforms,17/09/2014,94065,109.98,ARCO LIMITED - HEAD OFFICE HULL,A00045,6,2014
Allerdale Borough Council,15510,Supplies & Services,Confidential Waste,Disposal of Waste,24/09/2014,94066,250, PW CONF BUS SERVICES,A01846,6,2014
Allerdale Borough Council,52100,Capital Expenditure,Restructure Opt - Carnegie/HTM,Budget Professional Fees (Capital),10/09/2014,94067,1200,DAY CUMMINS LIMITED,A00131,6,2014
Allerdale Borough Council,12403,Premises,Homelessness,Gas,01/10/2014,94068,103,MEPOS LIMITED,A01286,6,2014
Allerdale Borough Council,15508,Supplies & Services,Shared IT Costs,Subscriptions,10/09/2014,94069,600,IT SERVICE MGT FORUM (ITSMF) LTD,A00984,6,2014
Allerdale Borough Council,15812,Supplies & Services,IT Services,Software Development,24/09/2014,94070,3400,ASTUN TECHNOLOGY LIMITED,A01234,6,2014
Allerdale Borough Council,15601,Supplies & Services,Carnegie Theatre,Postage,05/09/2014,94071,181.89,BOOKER CASH & CARRY,A01419,6,2014
Allerdale Borough Council,15812,Supplies & Services,IT Services,Software Development,24/09/2014,94072,199.77,RANDOMSTORM,A01609,6,2014
Allerdale Borough Council,15401,Supplies & Services,Planning and Development,General Stationery,10/09/2014,94073,25.7,HEATONS OFFICE SOLUTION (PREV LAKELAND/INTEGRITY),A00069,6,2014
Allerdale Borough Council,15506,Supplies & Services,KMAG Enhancement Activity,Professional Services,10/09/2014,94074,800,PEOPLE JUNCTION,A01996,6,2014
Allerdale Borough Council,15903,Supplies & Services,Members Services,Courses & Seminars,10/09/2014,94075,495,LOCAL GOVERNMENT ASSOCIATION,A00686,6,2014
Allerdale Borough Council,14202,Transport,Members Services,Hire Car and petrol,10/09/2014,94076,80,KEN ROUTLEDGE TRAVEL LTD,A00192,6,2014
Allerdale Borough Council,16003,Supplies & Services,Customer Services Pay Group,Security of Cash Movements,01/10/2014,94077,458.4,SECURITY PLUS LIMITED,A00503,6,2014
Allerdale Borough Council,16150,Supplies & Services,Solway Wetlands Project,General Promotions,01/10/2014,94078,250,STEVE BLAKE PHOTOGRAPHY,A01930,6,2014
Allerdale Borough Council,15104,Supplies & Services,Bereavement Services,Supplies for Resale,24/09/2014,94079,1240,GRANART,A00644,6,2014
Allerdale Borough Council,99999,Not Applicable,9599,Systems Suspense,10/09/2014,94080,21228.09,RSPB,M00200,6,2014
Allerdale Borough Council,15514,Supplies & Services,Carnegie Theatre,Public Entertainment,10/09/2014,94081,2903.68,PINK PRODUCTIONS UK LTD,A02068,6,2014
Allerdale Borough Council,14104,Transport,Parking Services Pay Group,Repairs & Maintenance,17/09/2014,94082,234.17,BROOKSIDE GARAGE,A01299,6,2014
Allerdale Borough Council,14104,Transport,Parking Services Pay Group,Repairs & Maintenance,17/09/2014,94083,142.97,BROOKSIDE GARAGE,A01299,6,2014
Allerdale Borough Council,14104,Transport,Parking Services Pay Group,Repairs & Maintenance,17/09/2014,94084,54.85,BROOKSIDE GARAGE,A01299,6,2014
Allerdale Borough Council,15101,Supplies & Services,KMAG Enhancement Activity,Equipment Costs,10/09/2014,94085,3265.65,PICTURE HANGING SYSTEMS LTD,A01990,6,2014
Allerdale Borough Council,16150,Supplies & Services,Solway Wetlands Project,General Promotions,10/09/2014,94086,428.22,PORTER AND WOODMAN GIFTS LTD,A02003,6,2014
Allerdale Borough Council,15513,Supplies & Services,Carnegie Theatre,Subcontractors - General,24/09/2014,94087,289.75,Redacted information - included personal information ,A01510,6,2014
Allerdale Borough Council,15302,Supplies & Services,Parks Development,Protective Clothing,17/09/2014,94088,51.84,ARCO LIMITED - HEAD OFFICE HULL,A00045,6,2014
Allerdale Borough Council,15601,Supplies & Services,Environmental Services Pay Group,Postage,10/09/2014,94089,200,ROYAL MAIL LETTERS,X00021,6,2014
Allerdale Borough Council,15704,Supplies & Services,IT Services,Mobile Phones,10/09/2014,94090,1120.65,VODAFONE,A00551,6,2014
Allerdale Borough Council,15703,Supplies & Services,IT Services,Call Charges,24/09/2014,94091,563.45,VODAFONE (PREV CABLE & WIRELESS),A00934,6,2014
Allerdale Borough Council,33107,Income,Trade Waste,Trade Refuse Charges Income,10/09/2014,94092,490.2,NEWLANDS ADVENTURE CENTRE,M00613,6,2014
Allerdale Borough Council,10401,Employee Costs,IT - New Initiatives,Agency Staff Costs,10/09/2014,94093,812.5,HAYS SPECIALIST RECRUITMENT LTD,A00280,6,2014
Allerdale Borough Council,10401,Employee Costs,IT - New Initiatives,Agency Staff Costs,10/09/2014,94094,1137.5,HAYS SPECIALIST RECRUITMENT LTD,A00280,6,2014
Allerdale Borough Council,10401,Employee Costs,IT - New Initiatives,Agency Staff Costs,10/09/2014,94095,650,HAYS SPECIALIST RECRUITMENT LTD,A00280,6,2014
Allerdale Borough Council,10401,Employee Costs,IT - New Initiatives,Agency Staff Costs,10/09/2014,94096,975,HAYS SPECIALIST RECRUITMENT LTD,A00280,6,2014
Allerdale Borough Council,10401,Employee Costs,IT - New Initiatives,Agency Staff Costs,10/09/2014,94097,975,HAYS SPECIALIST RECRUITMENT LTD,A00280,6,2014
Allerdale Borough Council,10401,Employee Costs,IT - New Initiatives,Agency Staff Costs,17/09/2014,94098,975,HAYS SPECIALIST RECRUITMENT LTD,A00280,6,2014
Allerdale Borough Council,12203,Premises,Public Convenience Cleaning,Plumbing and Heating Maintenance,10/09/2014,94099,576,Redacted information - included personal information ,C00008,6,2014
Allerdale Borough Council,12402,Premises,Footways,Electricity,17/09/2014,94100,771.08,VS HOMECARE &DOMESTIC SERVICES,A01436,6,2014
Allerdale Borough Council,10401,Employee Costs,IT - New Initiatives,Agency Staff Costs,24/09/2014,94101,812.5,HAYS SPECIALIST RECRUITMENT LTD,A00280,6,2014
Allerdale Borough Council,10401,Employee Costs,Public Convenience Cleaning,Agency Staff Costs,10/09/2014,94102,173.94,COCKERMOUTH TOWN COUNCIL,A00586,6,2014
Allerdale Borough Council,15501,Supplies & Services,Homelessness,Consultants Fees,10/09/2014,94103,30,MARYPORT HEALTH SERVICE,A00421,6,2014
Allerdale Borough Council,10401,Employee Costs,IT - New Initiatives,Agency Staff Costs,01/10/2014,94104,812.5,HAYS SPECIALIST RECRUITMENT LTD,A00280,6,2014
Allerdale Borough Council,20150,Third Party Payments,Footways,General Partnership Service Fees,10/09/2014,94105,70,J B FENCING,C00075,6,2014
Allerdale Borough Council,16350,Supplies & Services,Enterprise Coaches,Miscellaneous Expenses,10/09/2014,94106,76.18,ALLERDALE BOROUGH COUNCIL,X00034,6,2014
Allerdale Borough Council,14105,Transport,Homelessness,"Fuel, Lubricants & Consumables",,94107,405.35,BP OIL UK LTD,X00022,6,2014
Allerdale Borough Council,14105,Transport,Parking Services Pay Group,"Fuel, Lubricants & Consumables",,94108,503.46,BP OIL UK LTD ,X00022,6,2014
Allerdale Borough Council,15201,Supplies & Services,Chief Executive,Entertainment Of Visitors,29/09/2014,94109,494.48,BARCLAYCARD COMMERCIAL,X00207,6,2014
Allerdale Borough Council,20150,Third Party Payments,Homelessness,General Partnership Service Fees,10/09/2014,94110,12500,CROFTLANDS TRUST,M00282,6,2014
Allerdale Borough Council,16350,Supplies & Services,Homelessness,Miscellaneous Expenses,10/09/2014,94111,208,Redacted information - included personal information ,M00614,6,2014
Allerdale Borough Council,15808,Supplies & Services,IT Services,Computer Consumables,24/09/2014,94112,651,TANGIBLE BENEFIT LTD,A00179,6,2014
Allerdale Borough Council,15506,Supplies & Services,Arts Development,Professional Services,01/10/2014,94113,500,ROSEHILL ARTS TRUST LTD,A01372,6,2014
Allerdale Borough Council,15803,Supplies & Services,Shared IT Costs,Hardware Purchase,10/09/2014,94114,6445.2,MISCO,A00125,6,2014
Allerdale Borough Council,15808,Supplies & Services,IT Services,Computer Consumables,10/09/2014,94115,34.6,MISCO,A00125,6,2014
Allerdale Borough Council,15803,Supplies & Services,Shared IT Costs,Hardware Purchase,10/09/2014,94116,113.59,MISCO,A00125,6,2014
Allerdale Borough Council,15803,Supplies & Services,IT Services,Hardware Purchase,17/09/2014,94117,234.61,MISCO,A00125,6,2014
Allerdale Borough Council,15802,Supplies & Services,IT Services,Hardware Maintenance,17/09/2014,94118,228.77,MISCO,A00125,6,2014
Allerdale Borough Council,15401,Supplies & Services,Carnegie Theatre,General Stationery,24/09/2014,94119,186.25,LYRECO,A00043,6,2014
Allerdale Borough Council,15808,Supplies & Services,Document Management Pay Group,Computer Consumables,24/09/2014,94120,528.77,LYRECO,A00043,6,2014
Allerdale Borough Council,16101,Supplies & Services,Planning and Development,Statutory Notices,10/09/2014,94121,209.8,CUMBRIA CC - 3C STUDIO,A00070,6,2014
Allerdale Borough Council,15203,Supplies & Services,Members Services,Catering Costs and Consumables,10/09/2014,94122,143.08,ZEPBROOK LTD,A00072,6,2014
Allerdale Borough Council,15401,Supplies & Services,Document Management Pay Group,General Stationery,24/09/2014,94123,425.97,LYRECO,A00043,6,2014
Allerdale Borough Council,14150,Transport,Gates Travel,General-Council Vehicles (Non-Capital),24/09/2014,94124,1387.17,GATES TRAVEL,A01525,6,2014
Allerdale Borough Council,16350,Supplies & Services,Homelessness,Miscellaneous Expenses,10/09/2014,94125,400,Redacted information - included personal information ,M00615,6,2014
Allerdale Borough Council,54105,Capital Expenditure,Disabled Facilities Grants,Grants  Private Individuals (Capital),10/09/2014,94127,12585,W W BUILDERS LIMITED,X00212,6,2014
Allerdale Borough Council,54105,Capital Expenditure,Disabled Facilities Grants,Grants  Private Individuals (Capital),10/09/2014,94128,3765,THYSSEN KRUPP ENCASA A DIVISION OF THYSSENKRUPP LIMITED,X00105,6,2014
Allerdale Borough Council,54105,Capital Expenditure,Disabled Facilities Grants,Grants  Private Individuals (Capital),10/09/2014,94129,4872,Redacted information - included personal information ,X00115,6,2014
Allerdale Borough Council,54105,Capital Expenditure,Disabled Facilities Grants,Grants  Private Individuals (Capital),10/09/2014,94130,1723.12,BLUE FLAME SERVICES LTD,X00213,6,2014
Allerdale Borough Council,54105,Capital Expenditure,Assistance - Housing Services,Grants  Private Individuals (Capital),10/09/2014,94131,3373,MAYSON BROS LTD,X00132,6,2014
Allerdale Borough Council,54105,Capital Expenditure,Disabled Facilities Grants,Grants  Private Individuals (Capital),10/09/2014,94132,3325,BLUE FLAME SERVICES LTD,X00213,6,2014
Allerdale Borough Council,15101,Supplies & Services,Footways,Equipment Costs,10/09/2014,94133,198,M & D ELECTRICAL DISTRIBUTION,A00077,6,2014
Allerdale Borough Council,12409,Premises,Insurances,Buildings and Contents Insurance,10/09/2014,94134,91.14,AON UK LTD,A01698,6,2014
Allerdale Borough Council,15604,Supplies & Services,Document Management Pay Group,Franking Machine refills,10/09/2014,94135,10000,FP TELESET,A00428,6,2014
Allerdale Borough Council,73102,Holding and Control Accounts,Busy Bees Childcare Scheme,Holding Accounts General - Expenditure,10/09/2014,94136,53.13,COMPUTERSHARE VOUCHER SERVICES,A00991,6,2014
Allerdale Borough Council,73102,Holding and Control Accounts,Busy Bees Childcare Scheme,Holding Accounts General - Expenditure,10/09/2014,94137,966,COMPUTERSHARE VOUCHER SERVICES,A00991,6,2014
Allerdale Borough Council,15508,Supplies & Services,Housing Services Pay Group,Subscriptions,24/09/2014,94138,670,E S SINGLETON (SOLE TRADER TRADING AS SINGLELAW),A02072,6,2014
Allerdale Borough Council,15101,Supplies & Services,Street Cleansing,Equipment Costs,24/09/2014,94139,1600,PMC POLYTHENE LTD,A00194,6,2014
Allerdale Borough Council,15513,Supplies & Services,Animal Welfare,Subcontractors - General,10/09/2014,94140,41.27,MILLCROFT VETERINARY GROUP,A00211,6,2014
Allerdale Borough Council,15506,Supplies & Services,KMAG Enhancement Activity,Professional Services,10/09/2014,94141,115.64,MCKANES PRINTERS,A01507,6,2014
Allerdale Borough Council,15514,Supplies & Services,Carnegie Theatre,Public Entertainment,10/09/2014,94142,375,CHIC TALENT,A02067,6,2014
Allerdale Borough Council,15202,Supplies & Services,Carnegie Theatre,Bar Provision,10/09/2014,94143,173.95,DRINKS EXPRESS,A01862,6,2014
Allerdale Borough Council,10401,Employee Costs,Housing Services Pay Group,Agency Staff Costs,10/09/2014,94144,840,TEDGEM INVESTMENTS LTD,A01962,6,2014
Allerdale Borough Council,15500,Supplies & Services,Disposal of Allerdale Sites,Budget-Services,24/09/2014,94145,1080,MACDONALD & COMPANY FREELANCE LTD,A01947,6,2014
Allerdale Borough Council,14101,Transport,Shared IT Services Pay Group,Vehicle Leasing,,94146,199,ARNOLD CLARK AUTOMOBILES LTD,A01551,6,2014
Allerdale Borough Council,15808,Supplies & Services,IT Services,Computer Consumables,01/10/2014,94147,1070.7,SETON,A01435,6,2014
Allerdale Borough Council,10401,Employee Costs,Head of Governance,Agency Staff Costs,24/09/2014,94148,916.5,Redacted information - included personal information ,A01856,6,2014
Allerdale Borough Council,10401,Employee Costs,Head of Governance,Agency Staff Costs,24/09/2014,94149,1007.48,Redacted information - included personal information ,A01856,6,2014
Allerdale Borough Council,10401,Employee Costs,Head of Governance,Agency Staff Costs,24/09/2014,94150,672.75,Redacted information - included personal information ,A01856,6,2014
Allerdale Borough Council,10401,Employee Costs,Head of Governance,Agency Staff Costs,01/10/2014,94151,522.99,Redacted information - included personal information ,A01856,6,2014
Allerdale Borough Council,10401,Employee Costs,Head of Governance,Agency Staff Costs,01/10/2014,94152,1043.25,Redacted information - included personal information ,A01856,6,2014
Allerdale Borough Council,10401,Employee Costs,Head of Governance,Agency Staff Costs,24/09/2014,94153,1030.22,Redacted information - included personal information ,A01856,6,2014
Allerdale Borough Council,10401,Employee Costs,Head of Governance,Agency Staff Costs,24/09/2014,94154,1098.47,Redacted information - included personal information ,A01856,6,2014
Allerdale Borough Council,10401,Employee Costs,Head of Governance,Agency Staff Costs,24/09/2014,94155,1131,Redacted information - included personal information ,A01856,6,2014
Allerdale Borough Council,10401,Employee Costs,Head of Governance,Agency Staff Costs,24/09/2014,94156,1092,Redacted information - included personal information ,A01856,6,2014
Allerdale Borough Council,10401,Employee Costs,Head of Governance,Agency Staff Costs,24/09/2014,94157,1070.55,Redacted information - included personal information ,A01856,6,2014
Allerdale Borough Council,10401,Employee Costs,Head of Governance,Agency Staff Costs,24/09/2014,94158,1143.98,Redacted information - included personal information ,A01856,6,2014
Allerdale Borough Council,20150,Third Party Payments,Mortgage Repossession Support,General Partnership Service Fees,24/09/2014,94159,2500,CITIZENS ADVICE BUREAU,A01181,6,2014
Allerdale Borough Council,15812,Supplies & Services,IT Services,Software Development,10/09/2014,94160,3000,JEC PROFESSIONAL SERVICES LTD,A01984,6,2014
Allerdale Borough Council,81602,Balance Sheet,General Fund,Prov-Insurance Excess (Balance Sheet),10/09/2014,94161,5000,ZURICH MUNICIPAL,A00429,6,2014
Allerdale Borough Council,15503,Supplies & Services,Legal Services,Court and Tribunal Costs,10/09/2014,94162,210,HMCTS - ACCOUNT BY BACS,A01237,6,2014
Allerdale Borough Council,21150,Transfer Payments,Festivals & Events,General Grants,10/09/2014,94163,900,CADAS,A01363,6,2014
Allerdale Borough Council,20102,Third Party Payments,Recycling,Horticulture (Obsolete),10/09/2014,94164,205.5,THOMPSONS PLANT HIRE LTD,A00262,6,2014
Allerdale Borough Council,20102,Third Party Payments,Recycling,Horticulture (Obsolete),10/09/2014,94165,120.5,THOMPSONS PLANT HIRE LTD,A00262,6,2014
Allerdale Borough Council,20301,Third Party Payments,Parks and Grounds Maintenance,Contract Services-Parks & Open Spaces,10/09/2014,94166,97019,ISS WATERERS LANDSCAPE,C00044,6,2014
Allerdale Borough Council,20102,Third Party Payments,Recycling,Horticulture (Obsolete),10/09/2014,94167,2846.72,FCC RECYCLING (UK) LTD (ALCO),A00185,6,2014
Allerdale Borough Council,20102,Third Party Payments,Recycling,Horticulture (Obsolete),10/09/2014,94168,3013.38,FCC RECYCLING (UK) LTD (ALCO),A00185,6,2014
Allerdale Borough Council,20102,Third Party Payments,Recycling,Horticulture (Obsolete),10/09/2014,94169,9960.5,THOMPSONS PLANT HIRE LTD,A00262,6,2014
Allerdale Borough Council,33110,Income,Land Charges Service,Search & Enquiry Fees General Income,17/09/2014,94170,10,GAYNHAM KING AND MELLOR,M00242,6,2014
Allerdale Borough Council,15201,Supplies & Services,Leaders Services,Entertainment Of Visitors,17/09/2014,94171,73.72,ALLERDALE BOROUGH COUNCIL,X00034,6,2014
Allerdale Borough Council,15403,Supplies & Services,Communications and Marketing,Publications and Periodicals,17/09/2014,94172,72.9,P & D NEWSAGENTS,A00237,6,2014
Allerdale Borough Council,14101,Transport,Recycling,Vehicle Leasing,17/09/2014,94173,3015,DOBIES VAUXHALL,A00254,6,2014
Allerdale Borough Council,14101,Transport,Trade Waste,Vehicle Leasing,17/09/2014,94174,3015,DOBIES VAUXHALL,A00254,6,2014
Allerdale Borough Council,14101,Transport,Domestic Waste,Vehicle Leasing,17/09/2014,94175,3015,DOBIES VAUXHALL,A00254,6,2014
Allerdale Borough Council,14101,Transport,Street Cleansing,Vehicle Leasing,17/09/2014,94176,3015,DOBIES VAUXHALL,A00254,6,2014
Allerdale Borough Council,14101,Transport,Homelessness,Vehicle Leasing,17/09/2014,94177,171.74,DOBIES VAUXHALL,A00254,6,2014
Allerdale Borough Council,14101,Transport,Homelessness,Vehicle Leasing,17/09/2014,94178,171.74,DOBIES VAUXHALL,A00254,6,2014
Allerdale Borough Council,15502,Supplies & Services,Legal Services,Land Registry Fees,09/09/2014,94179,48,HM LAND REGISTRY,A00505,6,2014
Allerdale Borough Council,15502,Supplies & Services,Legal Services,Land Registry Fees,11/09/2014,94180,54,HM LAND REGISTRY ,A00505,6,2014
Allerdale Borough Council,15808,Supplies & Services,IT Services,Computer Consumables,17/09/2014,94181,449.99,MISCO,A00125,6,2014
Allerdale Borough Council,15808,Supplies & Services,IT Services,Computer Consumables,17/09/2014,94182,60,MISCO,A00125,6,2014
Allerdale Borough Council,15808,Supplies & Services,IT Services,Computer Consumables,17/09/2014,94183,518.79,MISCO,A00125,6,2014
Allerdale Borough Council,15701,Supplies & Services,IT Services,Installation Costs,17/09/2014,94184,1180.03,MISCO,A00125,6,2014
Allerdale Borough Council,15808,Supplies & Services,IT Services,Computer Consumables,17/09/2014,94185,135,MISCO,A00125,6,2014
Allerdale Borough Council,15101,Supplies & Services,Public Building Cleaning,Equipment Costs,17/09/2014,94186,5.7,INSTOCK (CHANDLERS),A00050,6,2014
Allerdale Borough Council,15601,Supplies & Services,Benefits,Postage,17/09/2014,94187,1395.01,ROYAL MAIL LETTERS,X00021,6,2014
Allerdale Borough Council,15601,Supplies & Services,Revenue,Postage,17/09/2014,94188,300,ROYAL MAIL LETTERS,X00021,6,2014
Allerdale Borough Council,70104,VAT,Input VAT,VAT - 20%,17/09/2014,94189,277.5,ROSSENDALES LTD,A00964,6,2014
Allerdale Borough Council,12408,Premises,Corporate Property Maintenance,Water & Sewage,17/09/2014,94190,34.16,UNITED UTILITIES ,X00011,6,2014
Allerdale Borough Council,12402,Premises,Other Land & Buildings,Electricity,17/09/2014,94191,26.51,EON ,X00016,6,2014
Allerdale Borough Council,12408,Premises,Public Convenience Cleaning,Water & Sewage,17/09/2014,94192,60.17,UNITED UTILITIES,X00011,6,2014
Allerdale Borough Council,12403,Premises,Corporate Property Maintenance,Gas,17/09/2014,94193,69.1,BRITISH GAS,X00006,6,2014
Allerdale Borough Council,12403,Premises,Corporate Property Maintenance,Gas,17/09/2014,94194,82.31,BRITISH GAS,X00006,6,2014
Allerdale Borough Council,12403,Premises,Corporate Property Maintenance,Gas,17/09/2014,94195,58.59,BRITISH GAS,X00006,6,2014
Allerdale Borough Council,12408,Premises,Public Convenience Cleaning,Water & Sewage,17/09/2014,94196,207.77,UNITED UTILITIES ,X00011,6,2014
Allerdale Borough Council,12402,Premises,Corporate Property Maintenance,Electricity,17/09/2014,94197,269.81,N POWER,X00015,6,2014
Allerdale Borough Council,12408,Premises,Public Convenience Cleaning,Water & Sewage,17/09/2014,94198,75.87,UNITED UTILITIES,X00011,6,2014
Allerdale Borough Council,12408,Premises,Public Convenience Cleaning,Water & Sewage,17/09/2014,94199,264.25,UNITED UTILITIES,X00011,6,2014
Allerdale Borough Council,12403,Premises,Corporate Property Maintenance,Gas,17/09/2014,94200,89.51,BRITISH GAS,X00006,6,2014
Allerdale Borough Council,12403,Premises,Corporate Property Maintenance,Gas,17/09/2014,94201,115.93,BRITISH GAS,X00006,6,2014
Allerdale Borough Council,12403,Premises,Corporate Property Maintenance,Gas,17/09/2014,94202,91.77,BRITISH GAS,X00006,6,2014
Allerdale Borough Council,12403,Premises,Corporate Property Maintenance,Gas,17/09/2014,94203,250.33,BRITISH GAS,X00006,6,2014
Allerdale Borough Council,12403,Premises,Corporate Property Maintenance,Gas,17/09/2014,94204,13.89,BRITISH GAS,X00006,6,2014
Allerdale Borough Council,15804,Supplies & Services,IT Services,Computer Data Lines B.T.,01/10/2014,94205,870.63,VODAFONE (PREV CABLE & WIRELESS),A00934,6,2014
Allerdale Borough Council,14101,Transport,Shared IT Services Pay Group,Vehicle Leasing,,94206,-926.58,ARNOLD CLARK AUTOMOBILES LTD,A01551,6,2014
Allerdale Borough Council,26000,Earmarked Reserves,Anti Poverty,Budget-Expd funded from Reserve,17/09/2014,94207,3.5,K&R BADGES LIMITED,A01328,6,2014
Allerdale Borough Council,16150,Supplies & Services,Solway Wetlands Project,General Promotions,17/09/2014,94208,1095.42,EILBECK RENTAL,A01161,6,2014
Allerdale Borough Council,15202,Supplies & Services,Carnegie Theatre,Bar Provision,17/09/2014,94209,202.41,CLASSIC DRINKS LIMITED,A00413,6,2014
Allerdale Borough Council,12305,Premises,Corporate Property Maintenance,Inspections and Services,24/09/2014,94210,7.5,PHS GROUP LTD,C00028,6,2014
Allerdale Borough Council,12305,Premises,Corporate Property Maintenance,Inspections and Services,24/09/2014,94211,5,PHS GROUP LTD,C00028,6,2014
Allerdale Borough Council,15202,Supplies & Services,Carnegie Theatre,Bar Provision,01/10/2014,94212,438.76,DRINKS EXPRESS,A01862,6,2014
Allerdale Borough Council,12303,Premises,Carnegie Theatre,Window Cleaning,17/09/2014,94213,278.69,J A LEE WINDOWS,A00051,6,2014
Allerdale Borough Council,12303,Premises,Corporate Property Maintenance,Window Cleaning,17/09/2014,94214,11.61,J A LEE WINDOWS,A00051,6,2014
Allerdale Borough Council,15811,Supplies & Services,Shared ICT Costs,Software Maintenance,24/09/2014,94215,15912.78,INTEROUTE (previously Quantix),A00195,6,2014
Allerdale Borough Council,15808,Supplies & Services,IT Services,Computer Consumables,01/10/2014,94216,43.74,INSIGHT DIRECT (UK) LTD,A00054,6,2014
Allerdale Borough Council,12302,Premises,Solway Coast AONB Core Funding,Building Cleaning,24/09/2014,94217,83.2,ORIAN SOLUTIONS LTD,A01814,6,2014
Allerdale Borough Council,12408,Premises,Corporate Property Maintenance,Water & Sewage,17/09/2014,94218,1159.86,UNITED UTILITIES,X00011,6,2014
Allerdale Borough Council,12402,Premises,Corporate Property Maintenance,Electricity,17/09/2014,94219,1554.24,N POWER,X00015,6,2014
Allerdale Borough Council,12402,Premises,Corporate Property Maintenance,Electricity,17/09/2014,94220,-1797.53,N POWER,X00015,6,2014
Allerdale Borough Council,12402,Premises,Corporate Property Maintenance,Electricity,17/09/2014,94221,1294.45,N POWER,X00015,6,2014
Allerdale Borough Council,12402,Premises,Corporate Property Maintenance,Electricity,17/09/2014,94222,1083.17,N POWER,X00015,6,2014
Allerdale Borough Council,15501,Supplies & Services,Revenue,Consultants Fees,17/09/2014,94223,11.04,ROSSENDALES LTD,A00964,6,2014
Allerdale Borough Council,12402,Premises,Corporate Property Maintenance,Electricity,17/09/2014,94224,3293.19,N POWER,X00015,6,2014
Allerdale Borough Council,12101,Premises,Car Parks Inspection & Maintenance,External Maintenance & Decoration,17/09/2014,94225,19913.2,T ARMSTRONG - CONSTRUCT,C00003,6,2014
Allerdale Borough Council,15102,Supplies & Services,Domestic Waste,Equipment Repair & Maintenance,17/09/2014,94226,643,Redacted information - included personal information ,A00176,6,2014
Allerdale Borough Council,15511,Supplies & Services,Street Cleansing,Removal of Vehicles,17/09/2014,94227,50,MICHAEL DOUGLAS AUTO SALVAGE,A00078,6,2014
Allerdale Borough Council,16101,Supplies & Services,Planning and Development,Statutory Notices,17/09/2014,94228,438.28,CUMBRIA CC - 3C STUDIO,A00070,6,2014
Allerdale Borough Council,15550,Supplies & Services,Out of Hours Telephones,General-Service Related Fees,24/09/2014,94229,702.2,ORBIS PROTECT LTD (PREV SITEXORBIS LIMITED),A00679,6,2014
Allerdale Borough Council,15550,Supplies & Services,Out of Hours Telephones,General-Service Related Fees,24/09/2014,94230,6.6,ORBIS PROTECT LTD (PREV SITEXORBIS LIMITED),A00679,6,2014
Allerdale Borough Council,16101,Supplies & Services,Planning and Development,Statutory Notices,17/09/2014,94231,1379.96,CUMBRIA CC - 3C STUDIO,A00070,6,2014
Allerdale Borough Council,12305,Premises,Corporate Property Maintenance,Inspections and Services,17/09/2014,94232,98,AQUAID (NORTH),A00123,6,2014
Allerdale Borough Council,12305,Premises,Corporate Property Maintenance,Inspections and Services,17/09/2014,94233,343,AQUAID (NORTH),A00123,6,2014
Allerdale Borough Council,12305,Premises,Corporate Property Maintenance,Inspections and Services,24/09/2014,94234,49,AQUAID (NORTH),A00123,6,2014
Allerdale Borough Council,16150,Supplies & Services,Solway Wetlands Project,General Promotions,17/09/2014,94235,90.72,ALLERDALE BOROUGH COUNCIL - AONB,X00216,6,2014
Allerdale Borough Council,15514,Supplies & Services,Silloth Beer Festival Ticket Sales,Public Entertainment,17/09/2014,94236,2496.64,SILLOTH FESTIVALS LTD,M00279,6,2014
Allerdale Borough Council,33150,Income,Credit Union,Other Fees Income,17/09/2014,94237,818,THE ALLERDALE CREDIT UNION,A00493,6,2014
Allerdale Borough Council,70104,VAT,VAT Control Account,VAT - 20%,17/09/2014,94238,1504.56,ROSEHILL ARTS TRUST LTD,A01372,6,2014
Allerdale Borough Council,72101,Holding and Control Accounts,Derwent Forest,Expenditure,17/09/2014,94239,23558.75,UPM TILHILL,M00616,6,2014
Allerdale Borough Council,15300,Supplies & Services,Animal Welfare,Budget-Prov of Clothing and Equipment,17/09/2014,94240,40,Redacted information - included personal information ,M00617,6,2014
Allerdale Borough Council,99902,Suspense Acc,Other Income Suspense Account,Suspense - Income Not Yet Identified,17/09/2014,94241,144,CUMBRIA CC ,A00066,6,2014
Allerdale Borough Council,10600,Employee Costs,Training,Budget-Training,17/09/2014,94242,450,Redacted information - included personal information ,A01948,6,2014
Allerdale Borough Council,16150,Supplies & Services,Carnegie Theatre,General Promotions,17/09/2014,94243,75,FIRPRESS PRINTERS,A00063,6,2014
Allerdale Borough Council,15550,Supplies & Services,Carnegie Theatre,General-Service Related Fees,17/09/2014,94244,21.32,TICKETS.COM LTD,A00371,6,2014
Allerdale Borough Council,15202,Supplies & Services,Carnegie Theatre,Bar Provision,17/09/2014,94245,11.84,SOLWAY HEATERS LTD,A00305,6,2014
Allerdale Borough Council,15550,Supplies & Services,Carnegie Theatre,General-Service Related Fees,24/09/2014,94246,24.6,TICKETS.COM LTD,A00371,6,2014
Allerdale Borough Council,15506,Supplies & Services,Revs & Bens Transformation Project,Professional Services,24/09/2014,94247,10625.01,LIBERATA UK LTD,C00122,6,2014
Allerdale Borough Council,10202,Employee Costs,Human Resources Pay Group,Medical Screening,17/09/2014,94248,316.73,WELLWORK LTD,A00029,6,2014
Allerdale Borough Council,10202,Employee Costs,Human Resources Pay Group,Medical Screening,17/09/2014,94249,32.96,WELLWORK LTD,A00029,6,2014
Allerdale Borough Council,15505,Supplies & Services,Planning and Development,Licences,24/09/2014,94250,34.48,CENTREMAPS,A00512,6,2014
Allerdale Borough Council,15402,Supplies & Services,Multi-functional Printers,Photocopier Charges,01/10/2014,94251,7411.48,KONICA MINOLTA BUSINESS SOLUTIONS UK LTD,A01556,6,2014
Allerdale Borough Council,15550,Supplies & Services,Carnegie Theatre,General-Service Related Fees,01/10/2014,94252,21.32,TICKETS.COM LTD,A00371,6,2014
Allerdale Borough Council,15202,Supplies & Services,Carnegie Theatre,Bar Provision,17/09/2014,94253,166.14,C.S. DRINKS LTD,A00005,6,2014
Allerdale Borough Council,12203,Premises,Public Convenience Cleaning,Plumbing and Heating Maintenance,17/09/2014,94254,1418,Redacted information - included personal information ,C00008,6,2014
Allerdale Borough Council,12101,Premises,Tenanted Properties,External Maintenance & Decoration,17/09/2014,94255,2500,ASHCROFT PLANT (CUMBRIA) LTD,C00018,6,2014
Allerdale Borough Council,14101,Transport,Mayoral Services,Vehicle Leasing,24/09/2014,94256,120,ACE TAXIS,A01927,6,2014
Allerdale Borough Council,14101,Transport,Mayoral Services,Vehicle Leasing,24/09/2014,94257,30,ACE TAXIS,A01927,6,2014
Allerdale Borough Council,14101,Transport,Mayoral Services,Vehicle Leasing,24/09/2014,94258,30,ACE TAXIS,A01927,6,2014
Allerdale Borough Council,14101,Transport,Mayoral Services,Vehicle Leasing,24/09/2014,94259,120,ACE TAXIS,A01927,6,2014
Allerdale Borough Council,12405,Premises,Homelessness,Rentals and Lease Charges,17/09/2014,94260,1205.42,HOME GROUP LTD,A00423,6,2014
Allerdale Borough Council,10401,Employee Costs,IT - New Initiatives,Agency Staff Costs,08/10/2014,94261,975,HAYS SPECIALIST RECRUITMENT LTD,A00280,6,2014
Allerdale Borough Council,10401,Employee Costs,Planning and Development,Agency Staff Costs,17/09/2014,94262,287.33,ADECCO RECRUITMENT,A00188,6,2014
Allerdale Borough Council,10401,Employee Costs,Planning and Development,Agency Staff Costs,17/09/2014,94263,472.49,ADECCO RECRUITMENT,A00188,6,2014
Allerdale Borough Council,10401,Employee Costs,Planning and Development,Agency Staff Costs,17/09/2014,94264,472.49,ADECCO RECRUITMENT,A00188,6,2014
Allerdale Borough Council,10401,Employee Costs,Planning and Development,Agency Staff Costs,17/09/2014,94265,469.3,ADECCO RECRUITMENT,A00188,6,2014
Allerdale Borough Council,10401,Employee Costs,Planning and Development,Agency Staff Costs,17/09/2014,94266,383.1,ADECCO RECRUITMENT,A00188,6,2014
Allerdale Borough Council,20304,Third Party Payments,Recycling,Contract Services-Recycling,17/09/2014,94267,375530.99,FCC ENVIRONMENT SERVICES (FOCSA),A00085,6,2014
Allerdale Borough Council,20102,Third Party Payments,Recycling,Horticulture (Obsolete),17/09/2014,94268,75,THOMPSONS PLANT HIRE LTD,A00262,6,2014
Allerdale Borough Council,20102,Third Party Payments,Recycling,Horticulture (Obsolete),17/09/2014,94269,2220,THOMPSONS PLANT HIRE LTD,A00262,6,2014
Allerdale Borough Council,12302,Premises,Carnegie Theatre,Building Cleaning,17/09/2014,94270,138,FCC RECYCLING (UK) LTD (ALCO),A00185,6,2014
Allerdale Borough Council,12302,Premises,Carnegie Theatre,Building Cleaning,17/09/2014,94271,376.5,FCC RECYCLING (UK) LTD (ALCO),A00185,6,2014
Allerdale Borough Council,12302,Premises,Carnegie Theatre,Building Cleaning,17/09/2014,94272,236.5,FCC RECYCLING (UK) LTD (ALCO),A00185,6,2014
Allerdale Borough Council,20113,Third Party Payments,Portfolio Based Priorities,Other Agencies,17/09/2014,94273,120.97,MINISTRY OF DEFENCE,M00618,6,2014
Allerdale Borough Council,21150,Transfer Payments,Festivals & Events,General Grants,17/09/2014,94274,450,KESWICK TOWN COUNCIL,A00253,6,2014
Allerdale Borough Council,33112,Income,Planning and Development,Planning Fees Income,17/09/2014,94275,69,Redacted information - included personal information ,M00619,6,2014
Allerdale Borough Council,54105,Capital Expenditure,Disabled Facilities Grants,Grants  Private Individuals (Capital),17/09/2014,94276,9506,W W BUILDERS LIMITED,X00212,6,2014
Allerdale Borough Council,54105,Capital Expenditure,Disabled Facilities Grants,Grants  Private Individuals (Capital),17/09/2014,94277,2960,W W BUILDERS LIMITED,X00212,6,2014
Allerdale Borough Council,54105,Capital Expenditure,Disabled Facilities Grants,Grants  Private Individuals (Capital),17/09/2014,94278,3130,TOP NOTCH CONTRACTORS LTD,X00165,6,2014
Allerdale Borough Council,54105,Capital Expenditure,Disabled Facilities Grants,Grants  Private Individuals (Capital),17/09/2014,94279,3767,TOP NOTCH CONTRACTORS LTD,X00165,6,2014
Allerdale Borough Council,54105,Capital Expenditure,Disabled Facilities Grants,Grants  Private Individuals (Capital),17/09/2014,94280,4255,THYSSEN KRUPP ENCASA A DIVISION OF THYSSENKRUPP LIMITED,X00105,6,2014
Allerdale Borough Council,12103,Premises,Coastal Protection and Inland Flooding,Grounds Maintenance,17/09/2014,94281,3683.6,STORY CONTRACTING LTD,C00055,6,2014
Allerdale Borough Council,12202,Premises,Public Convenience Cleaning,Electrical Repairs and Service,17/09/2014,94282,708.5,J & J ELECTRICAL (CUMBRIA) LTD,C00038,6,2014
Allerdale Borough Council,12202,Premises,Corporate Property Maintenance,Electrical Repairs and Service,17/09/2014,94283,381.9,J & J ELECTRICAL (CUMBRIA) LTD,C00038,6,2014
Allerdale Borough Council,20102,Third Party Payments,Recycling,Horticulture (Obsolete),17/09/2014,94284,3887.58,FCC RECYCLING (UK) LTD (ALCO),A00185,6,2014
Allerdale Borough Council,16101,Supplies & Services,Planning and Development,Statutory Notices,17/09/2014,94285,491.5,CUMBRIA CC - 3C STUDIO,A00070,6,2014
Allerdale Borough Council,15550,Supplies & Services,Recycling,General-Service Related Fees,17/09/2014,94286,42.88,SCOTTS HAULAGE,A00266,6,2014
Allerdale Borough Council,15101,Supplies & Services,Trade Waste,Equipment Costs,08/10/2014,94287,571.2,PLASTIC OMNIUM URBAN SYSTEMS LTD,A00159,6,2014
Allerdale Borough Council,15401,Supplies & Services,Solway Coast AONB Core Funding,General Stationery,08/10/2014,94288,106.46,VIKING DIRECT,A00828,6,2014
Allerdale Borough Council,10401,Employee Costs,Elections,Agency Staff Costs,01/10/2014,94289,2246,SELLICK PARTNERSHIP,A01993,6,2014
Allerdale Borough Council,10401,Employee Costs,Elections,Agency Staff Costs,17/09/2014,94290,1483,SELLICK PARTNERSHIP,A01993,6,2014
Allerdale Borough Council,10401,Employee Costs,Elections,Agency Staff Costs,24/09/2014,94291,1950,SELLICK PARTNERSHIP,A01993,6,2014
Allerdale Borough Council,16150,Supplies & Services,Solway AONB Other Projects,General Promotions,17/09/2014,94292,46.46,CARRS BILLINGTON AGRICULTURE,A00884,6,2014
Allerdale Borough Council,16150,Supplies & Services,Town Centre Management,General Promotions,17/09/2014,94293,18,THE SOLWAY CATERING COMPANY LTD,A01902,6,2014
Allerdale Borough Council,10401,Employee Costs,Parking Services Pay Group,Agency Staff Costs,17/09/2014,94294,8550,GATENBY SANDERSON,A01953,6,2014
Allerdale Borough Council,10401,Employee Costs,Housing Services Pay Group,Agency Staff Costs,17/09/2014,94295,843.57,TEDGEM INVESTMENTS LTD,A01962,6,2014
Allerdale Borough Council,16350,Supplies & Services,Enterprise Coaches,Miscellaneous Expenses,17/09/2014,94296,72.35,ALLERDALE BOROUGH COUNCIL,X00034,6,2014
Allerdale Borough Council,16150,Supplies & Services,Town Centre Management,General Promotions,17/09/2014,94297,15.67,ELLIS BROS LTD,A02074,6,2014
Allerdale Borough Council,10501,Employee Costs,Human Resources Pay Group,Advertising Vacancies,17/09/2014,94298,511.92,CUMBRIA CC - 3C STUDIO,A00070,6,2014
Allerdale Borough Council,15506,Supplies & Services,Legal Services,Professional Services,01/10/2014,94299,750,18 ST JOHN ST CHAMBERS,A01923,6,2014
Allerdale Borough Council,15506,Supplies & Services,Legal Services,Professional Services,17/09/2014,94300,25,BEATY & CO,M00352,6,2014
Allerdale Borough Council,15506,Supplies & Services,Allerdale Investment Partnership,Professional Services,24/09/2014,94301,1558.5,FREETH CARTWRIGHT LLP,A01821,6,2014
Allerdale Borough Council,15506,Supplies & Services,Allerdale Investment Partnership,Professional Services,24/09/2014,94302,1000,FREETH CARTWRIGHT LLP,A01821,6,2014
Allerdale Borough Council,16150,Supplies & Services,Town Centre Management,General Promotions,01/10/2014,94303,150,WORKINGTON TOWN COUNCIL,A01615,6,2014
Allerdale Borough Council,21150,Transfer Payments,Festivals & Events,General Grants,24/09/2014,94304,625.5,KESWICK VICTORIA FAYRE,M00620,6,2014
Allerdale Borough Council,15402,Supplies & Services,Customer Services Pay Group,Photocopier Charges,08/10/2014,94305,12.7,RICOH UK LTD,A00037,6,2014
Allerdale Borough Council,54105,Capital Expenditure,Disabled Facilities Grants,Grants  Private Individuals (Capital),24/09/2014,94306,2545.81,JACOBS STOBBARTS LIMITED,C00139,6,2014
Allerdale Borough Council,54105,Capital Expenditure,Disabled Facilities Grants,Grants  Private Individuals (Capital),24/09/2014,94307,3568.04,PARTNERSHIP IN PROPERTY MANAGEMENT LTD,X00120,6,2014
Allerdale Borough Council,16150,Supplies & Services,Solway Coast AONB Core Funding,General Promotions,24/09/2014,94308,107.13,ALLERDALE BOROUGH COUNCIL - AONB,X00216,6,2014
Allerdale Borough Council,54105,Capital Expenditure,Cluster of Empty Homes,Grants  Private Individuals (Capital),24/09/2014,94309,1312.5,Redacted information - included personal information ,X00230,6,2014
Allerdale Borough Council,12201,Premises,Corporate Property Maintenance,Internal Maintenance,24/09/2014,94310,492,CUMBRIA BLINDS,A00183,6,2014
Allerdale Borough Council,15101,Supplies & Services,Asset Management Pay Group,Equipment Costs,08/10/2014,94311,181.84,WF HYGIENE & CLEANING SUPPLIES,A01794,6,2014
Allerdale Borough Council,15101,Supplies & Services,Public Convenience Cleaning,Equipment Costs,08/10/2014,94312,14.34,WF HYGIENE & CLEANING SUPPLIES,A01794,6,2014
Allerdale Borough Council,15101,Supplies & Services,Public Convenience Cleaning,Equipment Costs,08/10/2014,94313,115.88,WF HYGIENE & CLEANING SUPPLIES,A01794,6,2014
Allerdale Borough Council,12203,Premises,Corporate Property Maintenance,Plumbing and Heating Maintenance,24/09/2014,94314,434,O'CONNELL & BEAN (MECH&ELEC) LTD,C00078,6,2014
Allerdale Borough Council,15501,Supplies & Services,Planning and Development,Consultants Fees,15/10/2014,94315,810,KINGS CHAMBERS,A00348,6,2014
Allerdale Borough Council,10601,Employee Costs,Training,External Courses & Seminar Fees,24/09/2014,94316,3000,CENTRE FOR LEADERSHIP PERFORMANCE,A01504,6,2014
Allerdale Borough Council,16150,Supplies & Services,Solway Wetlands Project,General Promotions,15/10/2014,94317,2703.28,GRAMPUS HERITAGE & TRAINING LTD,A01890,6,2014
Allerdale Borough Council,15101,Supplies & Services,Trade Waste,Equipment Costs,24/09/2014,94318,2200,LAKEMERE ENVIRONMENTAL SERVICES LIMITED,A01897,6,2014
Allerdale Borough Council,15101,Supplies & Services,Trade Waste,Equipment Costs,15/10/2014,94319,900,EGBERT H TAYLOR & COMPANY LTD,A01706,6,2014
Allerdale Borough Council,15812,Supplies & Services,IT Services,Software Development,24/09/2014,94320,126,CIVICA UK LIMITED,A00006,6,2014
Allerdale Borough Council,15401,Supplies & Services,Building Control - Chargeable,General Stationery,01/10/2014,94321,21.98,HEATONS OFFICE SOLUTION (PREV LAKELAND/INTEGRITY),A00069,6,2014
Allerdale Borough Council,15101,Supplies & Services,Planning and Development,Equipment Costs,01/10/2014,94322,106.5,HEATONS OFFICE SOLUTION (PREV LAKELAND/INTEGRITY),A00069,6,2014
Allerdale Borough Council,20102,Third Party Payments,Recycling,Horticulture (Obsolete),24/09/2014,94323,2561.84,FCC RECYCLING (UK) LTD (ALCO),A00185,6,2014
Allerdale Borough Council,15803,Supplies & Services,IT Services,Hardware Purchase,15/10/2014,94324,148.65,MISCO,A00125,6,2014
Allerdale Borough Council,15803,Supplies & Services,IT Services,Hardware Purchase,08/10/2014,94325,6295.24,INSIGHT DIRECT (UK) LTD,A00054,6,2014
Allerdale Borough Council,15803,Supplies & Services,IT Services,Hardware Purchase,08/10/2014,94326,6084.68,TANGIBLE BENEFIT LTD,A00179,6,2014
Allerdale Borough Council,15506,Supplies & Services,Legal Services,Professional Services,24/09/2014,94327,670.95,BOND DICKINSON LLP,A01933,6,2014
Allerdale Borough Council,15203,Supplies & Services,Carnegie Theatre,Catering Costs and Consumables,24/09/2014,94328,118.46,G & M SUPPLIES,A00033,6,2014
Allerdale Borough Council,10202,Employee Costs,Health and Safety,Medical Screening,24/09/2014,94329,85,SPECSAVERS,A00026,6,2014
Allerdale Borough Council,15516,Supplies & Services,Insurances,Insurance Services,24/09/2014,94330,6750,AON UK LTD,A01698,6,2014
Allerdale Borough Council,15516,Supplies & Services,Insurances,Insurance Services,24/09/2014,94331,15000,AON UK LTD,A01698,6,2014
Allerdale Borough Council,15101,Supplies & Services,Homelessness,Equipment Costs,24/09/2014,94332,65.5,THE LAUNDRY STUDIO,A00225,6,2014
Allerdale Borough Council,15812,Supplies & Services,IT Services,Software Development,24/09/2014,94333,354.93,PHOENIX SOFTWARE LTD,A00229,6,2014
Allerdale Borough Council,16150,Supplies & Services,Solway Wetlands Project,General Promotions,24/09/2014,94334,550,Redacted information - included personal information ,A02071,6,2014
Allerdale Borough Council,10401,Employee Costs,Housing Services Pay Group,Agency Staff Costs,24/09/2014,94335,686.28,TEDGEM INVESTMENTS LTD,A01962,6,2014
Allerdale Borough Council,54105,Capital Expenditure,Disabled Facilities Grants,Grants  Private Individuals (Capital),24/09/2014,94336,3400,DOLPHIN STAIRLIFTS CUMBRIA,X00107,6,2014
Allerdale Borough Council,15506,Supplies & Services,Communications and Marketing,Professional Services,01/10/2014,94337,510,LAKES PR LIMITED,A01912,6,2014
Allerdale Borough Council,15811,Supplies & Services,IT Services,Software Maintenance,01/09/2014,94338,140,SAGE (UK) LTD,A01911,6,2014
Allerdale Borough Council,15500,Supplies & Services,Disposal of Allerdale Sites,Budget-Services,08/10/2014,94339,1410,MACDONALD & COMPANY FREELANCE LTD,A01947,6,2014
Allerdale Borough Council,10401,Employee Costs,IT - New Initiatives,Agency Staff Costs,15/10/2014,94340,1137.5,HAYS SPECIALIST RECRUITMENT LTD,A00280,6,2014
Allerdale Borough Council,20150,Third Party Payments,Footways,General Partnership Service Fees,24/09/2014,94341,80,FIRTH FABRICATION SERVICES,C00020,6,2014
Allerdale Borough Council,20108,Third Party Payments,Corporate Management,Audit Commission,08/10/2014,94342,15817.5,GRANT THORNTON UK LLP,A01736,6,2014
Allerdale Borough Council,15506,Supplies & Services,Environmental Protection,Professional Services,08/10/2014,94343,150,ALCONTROL UK LIMITED,A00385,6,2014
Allerdale Borough Council,15550,Supplies & Services,Corporate Property Maintenance,General-Service Related Fees,08/10/2014,94344,390,ENERGY TEAM,A00352,6,2014
Allerdale Borough Council,15508,Supplies & Services,Finance and Accounting Pay Group,Subscriptions,24/09/2014,94345,2350,CIPFA,A00572,6,2014
Allerdale Borough Council,12303,Premises,Corporate Property Maintenance,Window Cleaning,01/10/2014,94346,81.16,J A LEE WINDOWS,A00051,6,2014
Allerdale Borough Council,16150,Supplies & Services,Town Centre Management,General Promotions,24/09/2014,94347,29.34,CUMBRIA TOURISM,A00477,6,2014
Allerdale Borough Council,15103,Supplies & Services,IT Services,Purchase of Materials,15/10/2014,94348,33972.5,CIVICA UK LIMITED,A00006,6,2014
Allerdale Borough Council,15203,Supplies & Services,Carnegie Theatre,Catering Costs and Consumables,24/09/2014,94349,30.84,GD MACBETH AND SON,A00221,6,2014
Allerdale Borough Council,15811,Supplies & Services,IT Services,Software Maintenance,15/10/2014,94350,4653,ALTERIAN TECHONOLGY LTD/SDL,A01747,6,2014
Allerdale Borough Council,15401,Supplies & Services,Solway Coast AONB Core Funding,General Stationery,15/10/2014,94351,51.16,VIKING DIRECT,A00828,6,2014
Allerdale Borough Council,15501,Supplies & Services,Homelessness,Consultants Fees,24/09/2014,94352,28,CASTLEHEAD MEDICAL CENTRE,A00875,6,2014
Allerdale Borough Council,15101,Supplies & Services,Corporate Property Maintenance,Equipment Costs,24/09/2014,94353,29.9,GD MACBETH AND SON,A00221,6,2014
Allerdale Borough Council,15803,Supplies & Services,IT Services,Hardware Purchase,15/10/2014,94354,23.33,INSIGHT DIRECT (UK) LTD,A00054,6,2014
Allerdale Borough Council,15803,Supplies & Services,IT Services,Hardware Purchase,15/10/2014,94355,23.33,INSIGHT DIRECT (UK) LTD,A00054,6,2014
Allerdale Borough Council,15803,Supplies & Services,IT Services,Hardware Purchase,15/10/2014,94356,106.61,INSIGHT DIRECT (UK) LTD,A00054,6,2014
Allerdale Borough Council,15803,Supplies & Services,IT Services,Hardware Purchase,15/10/2014,94357,106.61,INSIGHT DIRECT (UK) LTD,A00054,6,2014
Allerdale Borough Council,16302,Supplies & Services,Enterprise Coaches,Room Hire,24/09/2014,94358,1040,WHITEHAVEN COMMUNITY TRUST,A00240,6,2014
Allerdale Borough Council,15502,Supplies & Services,Legal Services,Land Registry Fees,23/09/2014,94359,40,HM LAND REGISTRY ,A00505,6,2014
Allerdale Borough Council,15502,Supplies & Services,Legal Services,Land Registry Fees,16/09/2014,94360,45,HM LAND REGISTRY ,A00505,6,2014
Allerdale Borough Council,14105,Transport,Parking Services Pay Group,"Fuel, Lubricants & Consumables",,94361,557.21,BP OIL UK LTD ,X00022,6,2014
Allerdale Borough Council,15802,Supplies & Services,Parking Services Pay Group,Hardware Maintenance,24/09/2014,94362,654.56,COBALT TELEPHONE TECHNOLOGY,A01008,6,2014
Allerdale Borough Council,15601,Supplies & Services,Benefits,Postage,24/09/2014,94363,1395.1,ROYAL MAIL LETTERS,X00021,6,2014
Allerdale Borough Council,15802,Supplies & Services,IT Services,Hardware Maintenance,24/09/2014,94364,1247.94,PROBRAND,A00040,6,2014
Allerdale Borough Council,15802,Supplies & Services,IT Services,Hardware Maintenance,24/09/2014,94365,-1247.85,PROBRAND,A00040,6,2014
Allerdale Borough Council,35106,Income,Homelessness,Dwellings Income,24/09/2014,94366,574.18,ALLERDALE ,A00342,6,2014
Allerdale Borough Council,35106,Income,Homelessness,Dwellings Income,24/09/2014,94367,170.82,ALLERDALE ,A00342,6,2014
Allerdale Borough Council,15810,Supplies & Services,IT Services,Software Licences,,94368,375,CAPITA BUSINESS SERVICE,A01270,6,2014
Allerdale Borough Council,15810,Supplies & Services,IT Services,Software Licences,,94369,-375,CAPITA BUSINESS SERVICE,A01270,6,2014
Allerdale Borough Council,16150,Supplies & Services,Town Centre Management,General Promotions,24/09/2014,94370,850,ASPATRIA T.C.,X00047,6,2014
Allerdale Borough Council,16150,Supplies & Services,Town Centre Management,General Promotions,24/09/2014,94371,300,LOVE MARYPORT TOWN TEAM,M00621,6,2014
Allerdale Borough Council,15811,Supplies & Services,IT Services,Software Maintenance,01/10/2014,94372,1419.8,GANDLAKE LIMITED,A00212,6,2014
Allerdale Borough Council,15811,Supplies & Services,IT Services,Software Maintenance,24/09/2014,94373,2674.4,IHS (GLOBAL) LIMITED,A01004,6,2014
Allerdale Borough Council,15903,Supplies & Services,Members Services,Courses & Seminars,08/10/2014,94374,99.41,ENTERPRISE RENT A CAR,A01367,6,2014
Allerdale Borough Council,12101,Premises,Car Parks Inspection & Maintenance,External Maintenance & Decoration,24/09/2014,94375,125,BINGHAM YATES & PARTNER,A00003,6,2014
Allerdale Borough Council,12101,Premises,Corporate Property Maintenance,External Maintenance & Decoration,24/09/2014,94376,295,BINGHAM YATES & PARTNER,A00003,6,2014
Allerdale Borough Council,73102,Holding and Control Accounts,Allerdale House Tea Fund,Holding Accounts General - Expenditure,24/09/2014,94377,143,TELK LTD,A01670,6,2014
Allerdale Borough Council,10700,Employee Costs,Human Resources Pay Group,Budget-Redundancy and Termination,24/09/2014,94378,350,MILBURNS SOLICITORS,A00310,6,2014
Allerdale Borough Council,12305,Premises,Corporate Property Maintenance,Inspections and Services,01/10/2014,94379,208.5,TYCO FIRE&INTEGRATED SOLUTIONS,A00773,6,2014
Allerdale Borough Council,15808,Supplies & Services,IT Services,Computer Consumables,01/10/2014,94380,153.6,MISCO,A00125,6,2014
Allerdale Borough Council,15808,Supplies & Services,IT Services,Computer Consumables,24/09/2014,94381,646.48,MISCO,A00125,6,2014
Allerdale Borough Council,15802,Supplies & Services,Parking Services Pay Group,Hardware Maintenance,24/09/2014,94382,58.08,RELIANCE HIGH-TECH LTD,C00123,6,2014
Allerdale Borough Council,12305,Premises,Corporate Property Maintenance,Inspections and Services,24/09/2014,94383,69.95,PHS GROUP LTD,C00028,6,2014
Allerdale Borough Council,12305,Premises,Public Convenience Cleaning,Inspections and Services,24/09/2014,94384,69.95,PHS GROUP LTD,C00028,6,2014
Allerdale Borough Council,15603,Supplies & Services,Document Management Pay Group,Franking Machine Costs,01/10/2014,94385,300,THE MAILING ROOM (FP EXECUTIVE AGENCY LTD),A00733,6,2014
Allerdale Borough Council,15808,Supplies & Services,IT Services,Computer Consumables,01/10/2014,94386,917.74,SETON,A01435,6,2014
Allerdale Borough Council,15808,Supplies & Services,IT Services,Computer Consumables,01/10/2014,94387,152.96,SETON,A01435,6,2014
Allerdale Borough Council,15808,Supplies & Services,IT Services,Computer Consumables,01/10/2014,94388,-1070.7,SETON,A01435,6,2014
Allerdale Borough Council,15302,Supplies & Services,Public Convenience Cleaning,Protective Clothing,24/09/2014,94389,44.91,ARCO LIMITED - CARLISLE,A01448,6,2014
Allerdale Borough Council,12408,Premises,Public Convenience Cleaning,Water & Sewage,24/09/2014,94390,19.53,UNITED UTILITIES ,X00011,6,2014
Allerdale Borough Council,12408,Premises,Public Convenience Cleaning,Water & Sewage,24/09/2014,94391,1681.5,UNITED UTILITIES ,X00011,6,2014
Allerdale Borough Council,12403,Premises,Public Convenience Cleaning,Gas,24/09/2014,94392,100.46,UNITED UTILITIES ,X00011,6,2014
Allerdale Borough Council,12408,Premises,Public Convenience Cleaning,Water & Sewage,24/09/2014,94393,23.38,UNITED UTILITIES ,X00011,6,2014
Allerdale Borough Council,12408,Premises,Public Convenience Cleaning,Water & Sewage,24/09/2014,94394,716.58,UNITED UTILITIES ,X00011,6,2014
Allerdale Borough Council,12408,Premises,Public Convenience Cleaning,Water & Sewage,24/09/2014,94395,1222.07,UNITED UTILITIES ,X00011,6,2014
Allerdale Borough Council,12408,Premises,Corporate Property Maintenance,Water & Sewage,24/09/2014,94396,100.19,UNITED UTILITIES ,X00011,6,2014
Allerdale Borough Council,12403,Premises,Corporate Property Maintenance,Gas,24/09/2014,94397,4.79,EON,X00016,6,2014
Allerdale Borough Council,12402,Premises,Car Parks Inspection & Maintenance,Electricity,24/09/2014,94398,85.84,N POWER,X00015,6,2014
Allerdale Borough Council,12402,Premises,Corporate Property Maintenance,Electricity,24/09/2014,94399,34,SOUTHERN ELECTRIC,X00018,6,2014
Allerdale Borough Council,12402,Premises,Footways,Electricity,24/09/2014,94400,5124.08,N POWER ,X00015,6,2014
Allerdale Borough Council,12402,Premises,Car Parks Inspection & Maintenance,Electricity,24/09/2014,94401,325.87,N POWER,X00015,6,2014
Allerdale Borough Council,12403,Premises,Corporate Property Maintenance,Gas,24/09/2014,94402,22.78,BRITISH GAS ,X00040,6,2014
Allerdale Borough Council,15506,Supplies & Services,KMAG Enhancement Activity,Professional Services,24/09/2014,94403,175,SLUG & BULL,A01974,6,2014
Allerdale Borough Council,15506,Supplies & Services,KMAG Enhancement Activity,Professional Services,24/09/2014,94404,250,H&H REEDS PRINTERS LTD,A00591,6,2014
Allerdale Borough Council,15506,Supplies & Services,Banking and Interest,Professional Services,15/10/2014,94405,750,YOUR PENSION SERVICE,A01465,6,2014
Allerdale Borough Council,15811,Supplies & Services,IT Services,Software Maintenance,15/10/2014,94406,750,PLAIN ENGLISH CAMPAIGN,A00143,6,2014
Allerdale Borough Council,16350,Supplies & Services,Chief Executive,Miscellaneous Expenses,,94407,113.23,BARCLAYCARD COMMERCIAL,X00207,6,2014
Allerdale Borough Council,16350,Supplies & Services,Director of Resources & PA,Miscellaneous Expenses,24/09/2014,94408,100,Redacted information - included personal information ,M00622,6,2014
Allerdale Borough Council,16150,Supplies & Services,Solway Wetlands Project,General Promotions,24/09/2014,94409,41670.31,GRAMPUS HERITAGE & TRAINING LTD,A01890,6,2014
Allerdale Borough Council,15503,Supplies & Services,Legal Services,Court and Tribunal Costs,24/09/2014,94410,50,HMCTS ,A01237,6,2014
Allerdale Borough Council,15203,Supplies & Services,Members Services,Catering Costs and Consumables,24/09/2014,94412,58.5,MAGGIES BAKERY,A01685,6,2014
Allerdale Borough Council,21150,Transfer Payments,Festivals & Events,General Grants,24/09/2014,94413,900,LOFTUS ASSOCIATES LTD,M00623,6,2014
Allerdale Borough Council,12305,Premises,Public Convenience Cleaning,Inspections and Services,24/09/2014,94414,286,SOLWAY INDUSTRIAL DOORS LTD,C00015,6,2014
Allerdale Borough Council,15101,Supplies & Services,Public Convenience Cleaning,Equipment Costs,08/10/2014,94415,46.8,WF HYGIENE & CLEANING SUPPLIES,A01794,6,2014
Allerdale Borough Council,15500,Supplies & Services,Disposal of Allerdale Sites,Budget-Services,08/10/2014,94416,66.08,MCKANES PRINTERS,A01507,6,2014
Allerdale Borough Council,12403,Premises,Corporate Property Maintenance,Gas,24/09/2014,94417,6091.55,KESWICK MUSEUM & ART GALLERY,A00337,6,2014
Allerdale Borough Council,15501,Supplies & Services,Revenue,Consultants Fees,24/09/2014,94418,35,THE CORPORATE & LEGAL GROUP OF COMPANIES,A02077,6,2014
Allerdale Borough Council,16100,Supplies & Services,Members Services,Budget-Advertising and Promotions,24/09/2014,94419,511.92,CUMBRIAN NEWSPAPERS,A00966,6,2014
Allerdale Borough Council,10501,Employee Costs,Corporate Recruitment,Advertising Vacancies,24/09/2014,94420,511.92,CUMBRIAN NEWSPAPERS,A00966,6,2014
Allerdale Borough Council,16101,Supplies & Services,Planning and Development,Statutory Notices,24/09/2014,94421,600.05,CUMBRIA CC - 3C STUDIO,A00070,6,2014
Allerdale Borough Council,16101,Supplies & Services,Planning and Development,Statutory Notices,,94422,699.78,CUMBRIA CC - 3C STUDIO,A00070,6,2014
Allerdale Borough Council,16101,Supplies & Services,Planning and Development,Statutory Notices,,94423,690.83,CUMBRIA CC - 3C STUDIO,A00070,6,2014
Allerdale Borough Council,16101,Supplies & Services,Planning and Development,Statutory Notices,24/09/2014,94424,429.32,CUMBRIA CC - 3C STUDIO,A00070,6,2014
Allerdale Borough Council,16101,Supplies & Services,Planning and Development,Statutory Notices,,94425,-85.8,CUMBRIA CC - 3C STUDIO,A00070,6,2014
Allerdale Borough Council,16101,Supplies & Services,Planning and Development,Statutory Notices,,94426,-48.93,CUMBRIA CC - 3C STUDIO,A00070,6,2014
Allerdale Borough Council,15103,Supplies & Services,Environmental Protection,Purchase of Materials,15/10/2014,94427,97.53,AST SIGNS LIMITED,A01473,6,2014
Allerdale Borough Council,12402,Premises,Corporate Property Maintenance,Electricity,01/10/2014,94428,15.93,N POWER ,X00015,6,2014
Allerdale Borough Council,12402,Premises,Corporate Property Maintenance,Electricity,01/10/2014,94429,3.79,N POWER ,X00015,6,2014
Allerdale Borough Council,12402,Premises,Public Convenience Cleaning,Electricity,01/10/2014,94430,4.77,N POWER ,X00015,6,2014
Allerdale Borough Council,12402,Premises,Corporate Property Maintenance,Electricity,01/10/2014,94431,1.32,N POWER ,X00015,6,2014
Allerdale Borough Council,12402,Premises,Corporate Property Maintenance,Electricity,01/10/2014,94432,1023.12,N POWER ,X00015,6,2014
Allerdale Borough Council,12402,Premises,Corporate Property Maintenance,Electricity,01/10/2014,94433,1144.52,N POWER ,X00015,6,2014
Allerdale Borough Council,12402,Premises,Public Convenience Cleaning,Electricity,01/10/2014,94434,25.53,N POWER ,X00015,6,2014
Allerdale Borough Council,12402,Premises,Public Convenience Cleaning,Electricity,01/10/2014,94435,182.98,N POWER ,X00015,6,2014
Allerdale Borough Council,12402,Premises,Corporate Property Maintenance,Electricity,01/10/2014,94436,192.39,N POWER ,X00015,6,2014
Allerdale Borough Council,12402,Premises,Car Parks Inspection & Maintenance,Electricity,01/10/2014,94437,11.81,N POWER ,X00015,6,2014
Allerdale Borough Council,12402,Premises,Corporate Property Maintenance,Electricity,01/10/2014,94438,4.2,N POWER ,X00015,6,2014
Allerdale Borough Council,12402,Premises,Corporate Property Maintenance,Electricity,01/10/2014,94439,4.77,N POWER ,X00015,6,2014
Allerdale Borough Council,14203,Transport,Members Services,Mileage Allowances - Car,01/10/2014,94440,16,GMB PAGE,M00624,6,2014
Allerdale Borough Council,33112,Income,Planning and Development,Planning Fees Income,01/10/2014,94441,46,Redacted information - included personal information ,M00625,6,2014
Allerdale Borough Council,54105,Capital Expenditure,Disabled Facilities Grants,Grants  Private Individuals (Capital),01/10/2014,94442,8145,DOLPHIN STAIRLIFTS CUMBRIA,X00107,6,2014
Allerdale Borough Council,15506,Supplies & Services,Legal Services,Professional Services,29/09/2014,94443,308.05,BARCLAYCARD COMMERCIAL,X00207,6,2014
Allerdale Borough Council,15506,Supplies & Services,Legal Services,Professional Services,29/09/2014,94444,36.16,BARCLAYCARD COMMERCIAL,X00207,6,2014
Allerdale Borough Council,14101,Transport,Mayoral Services,Vehicle Leasing,01/10/2014,94445,30,ACE TAXIS,A01927,6,2014
Allerdale Borough Council,14101,Transport,Mayoral Services,Vehicle Leasing,01/10/2014,94446,100,ACE TAXIS,A01927,6,2014
Allerdale Borough Council,15101,Supplies & Services,Public Convenience Cleaning,Equipment Costs,01/10/2014,94447,54,WF CLEANING SERVICES LTD,C00013,6,2014
Allerdale Borough Council,15501,Supplies & Services,Planning and Development,Consultants Fees,01/10/2014,94448,713.5,ST MICHAELS CHURCH,A00452,6,2014
Allerdale Borough Council,12103,Premises,Coastal Protection and Inland Flooding,Grounds Maintenance,15/10/2014,94449,3605.5,JOHN ELLIOTT LIMITED,C00023,6,2014
Allerdale Borough Council,51101,Capital Expenditure,New Leisure Facility,External Contractor Payments (Capital),01/10/2014,94450,59277.16,WILLMOTT DIXON CAPITAL WORKS LTD,C00127,6,2014
Allerdale Borough Council,12301,Premises,Corporate Property Maintenance,Security,01/10/2014,94451,260.82,G4S SECURE SOLUTIONS,A01597,6,2014
Allerdale Borough Council,12202,Premises,Public Convenience Cleaning,Electrical Repairs and Service,01/10/2014,94452,4460.8,J & J ELECTRICAL (CUMBRIA) LTD,C00038,6,2014
Allerdale Borough Council,15508,Supplies & Services,Planning and Development,Subscriptions,01/10/2014,94453,665,SUFFOLK COUNTY COUNCIL,A00980,6,2014
Allerdale Borough Council,10309,Employee Costs,Pension Deficit Employer Contribution,Pension Deficit Payments,30/09/2014,94471,615800,CUMBRIA LGPS,M00626,6,2014
Allerdale Borough Council,15810,Supplies & Services,Finance and Accounting Pay Group,Software Licences,,94472,36.48,BARCLAYCARD COMMERCIAL ,X00207,6,2014
Allerdale Borough Council,10601,Employee Costs,Training,External Courses & Seminar Fees,01/10/2014,94473,7000,CENTRE FOR LEADERSHIP PERFORMANCE,A01504,6,2014
Allerdale Borough Council,15811,Supplies & Services,IT Services,Software Maintenance,01/10/2014,94474,4127.5,IDOX SOFTWARE LTD,A00291,6,2014
Allerdale Borough Council,15550,Supplies & Services,Carnegie Theatre,General-Service Related Fees,01/10/2014,94475,10,TRANSACTION NETWORK SERVICES (UK) LTD,A01778,6,2014
Allerdale Borough Council,15404,Supplies & Services,Finance and Accounting Pay Group,Reference Materials,08/10/2014,94476,3100,CIPFA,A00572,6,2014
Allerdale Borough Council,15202,Supplies & Services,Carnegie Theatre,Bar Provision,01/10/2014,94477,6.97,SOLWAY HEATERS LTD,A00305,6,2014
Allerdale Borough Council,10600,Employee Costs,Training,Budget-Training,01/10/2014,94478,200,CIPFA,A00572,6,2014
Allerdale Borough Council,15101,Supplies & Services,Carnegie Theatre,Equipment Costs,08/10/2014,94479,425,TICKETS.COM LTD,A00371,6,2014
Allerdale Borough Council,15506,Supplies & Services,Director of Operations,Professional Services,01/10/2014,94480,280,RUSSELL GIBSON PARTNERSHIP LTD,A02069,6,2014
Allerdale Borough Council,15550,Supplies & Services,Carnegie Theatre,General-Service Related Fees,08/10/2014,94481,44.28,TICKETS.COM LTD,A00371,6,2014
Allerdale Borough Council,15550,Supplies & Services,Carnegie Theatre,General-Service Related Fees,15/10/2014,94482,57.4,TICKETS.COM LTD,A00371,6,2014
Allerdale Borough Council,51101,Capital Expenditure,New Leisure Facility,External Contractor Payments (Capital),01/10/2014,94483,83610.62,PICK EVERARD,A02007,6,2014
Allerdale Borough Council,10401,Employee Costs,Housing Services Pay Group,Agency Staff Costs,01/10/2014,94484,846.93,TEDGEM INVESTMENTS LTD,A01962,6,2014
Allerdale Borough Council,15513,Supplies & Services,Carnegie Theatre,Subcontractors - General,01/10/2014,94485,264,R W AUDIO,C00059,6,2014
Allerdale Borough Council,15513,Supplies & Services,Carnegie Theatre,Subcontractors - General,01/10/2014,94486,514.5,R W AUDIO,C00059,6,2014
Allerdale Borough Council,15203,Supplies & Services,Members Services,Catering Costs and Consumables,08/10/2014,94487,58.5,MAGGIES BAKERY,A01685,6,2014
Allerdale Borough Council,15103,Supplies & Services,Environmental Protection,Purchase of Materials,15/10/2014,94488,250,MAGGIES BAKERY,A01685,6,2014
Allerdale Borough Council,10401,Employee Costs,Head of Governance,Agency Staff Costs,08/10/2014,94489,181.42,VENN GROUP,A01836,6,2014
Allerdale Borough Council,10401,Employee Costs,Head of Governance,Agency Staff Costs,08/10/2014,94490,217.47,VENN GROUP,A01836,6,2014
Allerdale Borough Council,10401,Employee Costs,Head of Governance,Agency Staff Costs,08/10/2014,94491,203.96,VENN GROUP,A01836,6,2014
Allerdale Borough Council,10401,Employee Costs,Head of Governance,Agency Staff Costs,08/10/2014,94492,226.43,VENN GROUP,A01836,6,2014
Allerdale Borough Council,10401,Employee Costs,Head of Governance,Agency Staff Costs,08/10/2014,94493,214.23,VENN GROUP,A01836,6,2014
Allerdale Borough Council,10401,Employee Costs,Head of Governance,Agency Staff Costs,08/10/2014,94494,223.88,VENN GROUP,A01836,6,2014
Allerdale Borough Council,16100,Supplies & Services,Electoral Registration,Budget-Advertising and Promotions,01/10/2014,94495,106,SOUTH LAKELAND DISTRICT COUNCIL,A00569,6,2014
Allerdale Borough Council,10401,Employee Costs,Elections,Agency Staff Costs,08/10/2014,94496,1479,SELLICK PARTNERSHIP,A01993,6,2014
Allerdale Borough Council,16150,Supplies & Services,Arts Development,General Promotions,01/10/2014,94497,34,TROPHIES SPORT & LEISURE LTD,A01704,6,2014
Allerdale Borough Council,15602,Supplies & Services,Electoral Registration,Business Reply Licences,01/10/2014,94498,664.24,ROYAL MAIL LETTERS,X00021,6,2014
Allerdale Borough Council,15602,Supplies & Services,Electoral Registration,Business Reply Licences,01/10/2014,94499,41,ROYAL MAIL LETTERS,X00021,6,2014
Allerdale Borough Council,15301,Supplies & Services,Parks Development,Uniforms,,94500,109.98,ARCO LIMITED - HEAD OFFICE HULL,A00045,6,2014
Allerdale Borough Council,15301,Supplies & Services,Parks Development,Uniforms,,94501,-109.98,ARCO LIMITED - HEAD OFFICE HULL,A00045,6,2014
Allerdale Borough Council,15501,Supplies & Services,Revenue,Consultants Fees,01/10/2014,94502,145.96,ROSSENDALES LTD,A00964,6,2014
Allerdale Borough Council,15501,Supplies & Services,Revenue,Consultants Fees,01/10/2014,94503,75.73,ROSSENDALES LTD,A00964,6,2014
Allerdale Borough Council,14200,Transport,Human Resources Pay Group,Budget-Travel,01/10/2014,94504,138,COPELAND BOROUGH COUNCIL,A00589,6,2014
Allerdale Borough Council,15703,Supplies & Services,Silloth TIC,Call Charges,01/10/2014,94505,149.41,BRITISH TELECOMMUNICATIONS,X00004,6,2014
Allerdale Borough Council,15750,Supplies & Services,Enterprise Coaches,General Telecommunications Costs,01/10/2014,94506,92.94,BRITISH TELECOMMUNICATIONS,X00004,6,2014
Allerdale Borough Council,15702,Supplies & Services,Crime Prevention,Line Rentals,01/10/2014,94507,161.41,BRITISH TELECOMMUNICATIONS,X00004,6,2014
Allerdale Borough Council,15702,Supplies & Services,Street Cleansing,Line Rentals,01/10/2014,94508,47.83,BRITISH TELECOMMUNICATIONS,X00004,6,2014
Allerdale Borough Council,10601,Employee Costs,Chief Executive,External Courses & Seminar Fees,,94509,219.42,BARCLAYCARD COMMERCIAL,X00207,6,2014
Allerdale Borough Council,12309,Premises,Corporate Property Maintenance,Fire and Safety,,94510,783.15,ORIAN SOLUTIONS LTD,A01814,6,2014
Allerdale Borough Council,16302,Supplies & Services,Localities & Partnerships,Room Hire,01/10/2014,94511,30,COCKERMOUTH TOWN COUNCIL,A00586,6,2014
Allerdale Borough Council,20102,Third Party Payments,Recycling,Horticulture (Obsolete),01/10/2014,94512,133,THOMPSONS PLANT HIRE LTD,A00262,6,2014
Allerdale Borough Council,20102,Third Party Payments,Recycling,Horticulture (Obsolete),01/10/2014,94513,2813,THOMPSONS PLANT HIRE LTD,A00262,6,2014
Allerdale Borough Council,20101,Third Party Payments,Recycling,Cleansing Contract,01/10/2014,94514,344.1,CUMBRIA WASTE MANAGEMENT LTD,A01304,6,2014
Allerdale Borough Council,15101,Supplies & Services,Public Convenience Cleaning,Equipment Costs,,94515,164.4,WF HYGIENE & CLEANING SUPPLIES,A01794,6,2014
Allerdale Borough Council,14101,Transport,Mayoral Services,Vehicle Leasing,01/10/2014,94516,30,ACE TAXIS,A01927,6,2014
Allerdale Borough Council,14101,Transport,Mayoral Services,Vehicle Leasing,01/10/2014,94517,60,ACE TAXIS,A01927,6,2014
Allerdale Borough Council,16003,Supplies & Services,Customer Services Pay Group,Security of Cash Movements,,94518,479.23,SECURITY PLUS LIMITED,A00503,6,2014
Allerdale Borough Council,15405,Supplies & Services,Members Services,Use of External Printers,01/10/2014,94519,217,FIRPRESS PRINTERS,A00063,6,2014
Allerdale Borough Council,12103,Premises,Coastal Protection and Inland Flooding,Grounds Maintenance,,94520,331.5,JOHN ELLIOTT LIMITED,C00023,6,2014
Allerdale Borough Council,12101,Premises,Corporate Property Maintenance,External Maintenance & Decoration,,94521,55.84,AST SIGNS LIMITED,A01473,6,2014
Allerdale Borough Council,15501,Supplies & Services,Planning and Development,Consultants Fees,,94522,2817.66,CORNWALL ENVIRONMENTAL CONSULTANTS (CEC LTD),A02041,6,2014
Allerdale Borough Council,10401,Employee Costs,Elections,Agency Staff Costs,15/10/2014,94523,2458.5,SELLICK PARTNERSHIP,A01993,6,2014
Allerdale Borough Council,15510,Supplies & Services,Confidential Waste,Disposal of Waste,,94524,478,PW CONF BUS SERVICES,A01846,6,2014
Allerdale Borough Council,15101,Supplies & Services,Recycling,Equipment Costs,08/10/2014,94525,15874.72,BPI RECYCLED PRODUCTS,A00318,6,2014
Allerdale Borough Council,15101,Supplies & Services,Weekly Collection Support Scheme,Equipment Costs,15/10/2014,94526,6069.36,CRAEMER UK LTD,A01016,6,2014
Allerdale Borough Council,15202,Supplies & Services,Carnegie Theatre,Bar Provision,01/10/2014,94527,372.12,GRAPEVINE WINE SERVICE,A00295,6,2014
Allerdale Borough Council,10600,Employee Costs,Training,Budget-Training,01/10/2014,94528,750,FERRET INFORMATION SYSTEMS LTD,A02057,6,2014
Allerdale Borough Council,10600,Employee Costs,Training,Budget-Training,08/10/2014,94529,1025,CIPFA,A00572,6,2014
Allerdale Borough Council,14202,Transport,Elections,Hire Car and petrol,08/10/2014,94530,46.4,ENTERPRISE RENT A CAR,A01367,6,2014
Allerdale Borough Council,10202,Employee Costs,Human Resources Pay Group,Medical Screening,08/10/2014,94531,36.78,WELLWORK LTD,A00029,6,2014
Allerdale Borough Council,12101,Premises,Other Land & Buildings,External Maintenance & Decoration,15/10/2014,94532,195,W G MACKAY LTD,A01711,6,2014
Allerdale Borough Council,10202,Employee Costs,Human Resources Pay Group,Medical Screening,15/10/2014,94533,257.5,WELLWORK LTD,A00029,6,2014
Allerdale Borough Council,10600,Employee Costs,Training,Budget-Training,01/10/2014,94534,2110,CARLISLE CITY COUNCIL,A00161,6,2014
Allerdale Borough Council,15301,Supplies & Services,Asset Management Pay Group,Uniforms,08/10/2014,94535,72.81,ARCO LIMITED - CARLISLE,A01448,6,2014
Allerdale Borough Council,12405,Premises,Homelessness,Rentals and Lease Charges,01/10/2014,94536,1205.42,HOME GROUP LTD,A00423,6,2014
Allerdale Borough Council,10600,Employee Costs,Training,Budget-Training,15/10/2014,94537,1500,INVESTORS IN PEOPLE NORTHWEST,A01284,6,2014
Allerdale Borough Council,15401,Supplies & Services,Environmental Health Pay Group,General Stationery,15/10/2014,94538,19.85,K&R BADGES LIMITED,A01328,6,2014
Allerdale Borough Council,15101,Supplies & Services,Recycling,Equipment Costs,08/10/2014,94539,-14989.14,BPI RECYCLED PRODUCTS,A00318,6,2014
Allerdale Borough Council,16101,Supplies & Services,Planning and Development,Statutory Notices,01/10/2014,94540,744.25,CUMBRIA CC - 3C STUDIO,A00070,6,2014
Allerdale Borough Council,75103,Holding and Control Accounts,Payroll Suspense Account,PAYROLL September 14 Travel & Subsistence  ,,,13521.31,INLAND REVENUE,X00038,6,2014
